bitfinex/quotes_SOLUSD_20250531
["timestamp","ask_amount","ask_price","bid_price","bid_amount"]
[1748717632664,13.76525134,156.58,156.53,46.15373801]
[1748717632887,13.76525134,156.57,156.53,32.38848667]
[1748717633880,13.76525134,156.58,156.53,32.38848667]
[1748717635060,13.76525134,156.57,156.53,32.38848667]
[1748717636865,13.76525134,156.58,156.53,46.15373801]
[1748717638275,8.81038068,156.58,156.53,41.19886735]
[1748717640071,8.81038068,156.57,156.53,32.38848667]
[1748717642198,8.81038068,156.57,156.53,41.19886735]
[1748717643175,47.45038068,156.58,156.53,41.19886735]
[1748717644200,47.45038068,156.58,156.57,26.0]
[1748717644495,38.64,156.58,156.57,26.0]
[1748717645692,8.81038068,156.59,156.57,26.0]
[1748717645892,8.81038068,156.58,156.56,26.0]
[1748717647499,47.45038068,156.59,156.56,26.0]
[1748717647694,47.45038068,156.59,156.58,26.0]
[1748717648910,38.64,156.59,156.56,26.0]
[1748717649079,38.64,156.59,156.5,89.6]
[1748717649080,16.60338068,156.62,156.58,26.0]
[1748717649279,7.8895,156.61,156.6,26.0]
[1748717649482,7.8895,156.61,156.6,8.81038068]
[1748717651000,7.8895,156.61,156.6,15.19607672]
[1748717652176,7.8895,156.61,156.6,46.13966397]
[1748717652399,7.8895,156.61,156.6,20.13966397]
[1748717652985,7.8895,156.61,156.59,13.75396793]
[1748717653495,7.8895,156.61,156.6,17.6668]
[1748717654094,7.8895,156.61,156.59,6.38610383]
[1748717654831,7.8895,156.61,156.59,20.14007176]
[1748717663808,7.8895,156.61,156.6,26.0]
[1748717664905,7.8895,156.61,156.6,32.38569604]
[1748717674915,7.8895,156.61,156.58,26.0]
[1748717674916,55.33373394,156.61,156.58,26.0]
[1748717675235,8.80423394,156.6,156.58,26.0]
[1748717675941,8.80423394,156.6,156.59,26.0]
[1748717676518,8.80423394,156.6,156.57,26.0]
[1748717676715,52.91496068,156.61,156.59,26.0]
[1748717676932,8.80423394,156.6,156.59,26.0]
[1748717679432,8.80423394,156.6,156.57,32.38687885]
[1748717679635,8.80423394,156.59,156.57,32.38687885]
[1748717680944,46.5295,156.61,156.57,32.38687885]
[1748717681112,8.80423394,156.6,156.57,32.38687885]
[1748717689051,8.80423394,156.59,156.57,26.0]
[1748717689268,8.80423394,156.59,156.58,26.0]
[1748717693679,8.80423394,156.59,156.57,32.38680004]
[1748717694900,8.80423394,156.58,156.57,26.0]
[1748717696193,8.80423394,156.59,156.57,26.0]
[1748717697081,8.80423394,156.59,156.57,32.38689394]
[1748717697287,8.80423394,156.6,156.57,32.38689394]
[1748717698173,8.80423394,156.59,156.57,32.38689394]
[1748717700098,47.44423394,156.59,156.57,32.38689394]
[1748717706375,38.64,156.59,156.57,32.38689394]
[1748717707601,38.64,156.59,156.58,26.0]
[1748717707793,47.44423394,156.59,156.57,26.0]
[1748717708707,8.80423394,156.58,156.57,26.0]
[1748717711706,8.80423394,156.58,156.56,32.3871741]
[1748717712800,8.80423394,156.58,156.57,26.0]
[1748717713388,8.80423394,156.58,156.45,10.0]
[1748717713389,8.80423394,156.58,156.55,26.0]
[1748717713602,0.14216157,156.55,156.5,6.38977635]
[1748717713902,8.80423394,156.53,156.52,26.0]
[1748717714087,8.80423394,156.54,156.52,26.0]
[1748717715804,9.86,156.56,156.54,32.3881436]
[1748717716010,38.64,156.57,156.54,41.19237754]
[1748717717006,47.44423394,156.59,156.54,41.19237754]
[1748717718109,8.80423394,156.58,156.54,32.3881436]
[1748717718296,13.76612799,156.58,156.54,32.3881436]
[1748717719514,13.76612799,156.57,156.54,32.3881436]
[1748717720112,52.40612799,156.58,156.54,32.3881436]
[1748717723604,38.64,156.58,156.54,32.3881436]
[1748717726420,52.40612799,156.58,156.54,32.3881436]
[1748717734418,38.64,156.58,156.54,46.15427159]
[1748717738517,9.86,156.6,156.55,13.76612799]
[1748717738718,38.64,156.61,156.6,26.0]
[1748717739608,23.62612799,156.63,156.6,26.0]
[1748717739808,38.64,156.62,156.6,26.0]
[1748717740009,23.62612799,156.63,156.6,26.0]
[1748717740204,9.86,156.63,156.62,26.0]
[1748717740515,48.5,156.63,156.62,26.0]
[1748717742305,62.26612799,156.63,156.62,26.0]
[1748717743205,23.62612799,156.63,156.62,26.0]
[1748717743419,62.26612799,156.63,156.62,26.0]
[1748717748230,57.30516843,156.63,156.62,26.0]
[1748717748610,0.14216157,156.62,156.59,26.0]
[1748717748937,8.80516843,156.6,156.59,26.0]
[1748717749123,47.44516843,156.6,156.59,26.0]
[1748717750428,47.44516843,156.6,156.53,9.86]
[1748717750635,8.80516843,156.58,156.53,8.80516843]
[1748717750811,38.64,156.57,156.56,26.0]
[1748717752117,38.64,156.57,156.55,6.3876141]
[1748717752424,38.64,156.59,156.58,26.0]
[1748717752628,38.64,156.6,156.58,26.0]
[1748717754035,38.64,156.6,156.57,32.38673172]
[1748717754339,52.40602347,156.6,156.57,32.38673172]
[1748717755424,38.64,156.6,156.57,32.38673172]
[1748717760857,13.76602347,156.58,156.53,20.15457518]
[1748717761024,13.76602347,156.58,156.56,26.0]
[1748717761428,13.76602347,156.58,156.57,26.0]
[1748717766449,13.76602347,156.59,156.57,26.0]
[1748717769962,13.76602347,156.6,156.57,32.38690217]
[1748717770161,9.86,156.61,156.57,46.15292564]
[1748717770448,38.64,156.61,156.57,46.15292564]
[1748717770825,38.64,156.61,156.6,26.0]
[1748717771451,13.76602347,156.63,156.6,26.0]
[1748717771452,38.64,156.62,156.6,26.0]
[1748717771835,52.40602347,156.62,156.6,26.0]
[1748717772236,47.44579984,156.62,156.6,26.0]
[1748717774251,52.39871497,156.62,156.6,26.0]
[1748717774663,38.64,156.62,156.6,32.38562902]
[1748717775349,13.75871497,156.63,156.6,32.38562902]
[1748717775739,52.39871497,156.63,156.6,32.38562902]
[1748717776857,13.75871497,156.63,156.6,32.38562902]
[1748717777059,38.64,156.63,156.6,32.38562902]
[1748717778659,38.64,156.63,156.6,46.14434399]
[1748717783145,52.39871497,156.63,156.6,32.38562902]
[1748717784779,52.39871497,156.63,156.62,26.0]
[1748717785454,38.64,156.63,156.62,26.0]
[1748717789769,52.39871497,156.63,156.62,26.0]
[1748717794187,47.44437848,156.63,156.62,26.0]
[1748717807458,47.44437848,156.63,156.6,6.38567728]
[1748717807459,47.44437848,156.63,156.6,26.0]
[1748717807658,8.80437848,156.61,156.6,26.0]
[1748717808060,8.80437848,156.62,156.6,26.0]
[1748717812569,8.80437848,156.62,156.61,26.0]
[1748717813475,47.44437848,156.63,156.61,26.0]
[1748717813676,47.58654005,156.63,156.62,26.0]
[1748717813888,38.64,156.63,156.62,26.0]
[1748717814473,38.64,156.63,156.61,6.38525808]
[1748717815387,38.64,156.63,156.62,26.0]
[1748717816680,47.44437848,156.63,156.62,26.0]
[1748717817082,8.80437848,156.63,156.62,26.0]
[1748717817283,47.42437848,156.63,156.62,26.0]
[1748717818894,47.42437848,156.63,156.6,26.0]
[1748717819078,8.80437848,156.62,156.6,26.0]
[1748717819591,8.80437848,156.62,156.59,6.38594745]
[1748717819792,8.80437848,156.62,156.59,32.38594745]
[1748717821388,47.42437848,156.63,156.59,32.38594745]
[1748717821695,47.56654005,156.63,156.62,26.0]
[1748717826706,8.80437848,156.63,156.62,26.0]
[1748717826893,38.62,156.63,156.62,26.0]
[1748717828199,9.86,156.64,156.62,32.3847436]
[1748717828401,48.48,156.64,156.62,32.3847436]
[1748717828594,9.86,156.64,156.62,32.3847436]
[1748717828793,48.48,156.64,156.62,32.3847436]
[1748717832280,48.48,156.64,156.62,26.0]
[1748717832485,8.80437848,156.63,156.61,26.0]
[1748717833084,57.28437848,156.64,156.61,26.0]
[1748717833810,57.28437848,156.64,156.63,26.0]
[1748717835103,18.66437848,156.64,156.63,26.0]
[1748717835304,57.28437848,156.64,156.63,26.0]
[1748717837313,0.28432314,156.63,156.58,26.0]
[1748717837494,8.80437848,156.61,156.58,26.0]
[1748717837694,38.62,156.6,156.59,26.0]
[1748717841212,38.62,156.6,156.59,32.38610383]
[1748717842815,38.62,156.61,156.59,32.38610383]
[1748717850101,38.62,156.61,156.59,41.19048231]
[1748717850508,38.62,156.63,156.59,41.19048231]
[1748717854129,47.42437848,156.63,156.59,41.19048231]
[1748717854919,8.80437848,156.63,156.59,32.38610383]
[1748717855127,47.42437848,156.63,156.59,32.38610383]
[1748717860351,38.62,156.63,156.59,41.19048231]
[1748717864335,47.42437848,156.63,156.59,32.38610383]
[1748717864544,47.42437848,156.63,156.59,26.0]
[1748717864744,8.80437848,156.6,156.49,121.54890916]
[1748717864950,8.80437848,156.58,156.52,10.36137848]
[1748717865153,8.80437848,156.58,156.55,26.0]
[1748717865622,8.80437848,156.57,156.55,26.0]
[1748717866756,8.80437848,156.57,156.56,26.0]
[1748717867052,8.80437848,156.58,156.56,26.0]
[1748717867235,8.80437848,156.57,156.55,6.3875207]
[1748717867635,8.80437848,156.56,156.54,26.0]
[1748717867835,8.80437848,156.55,156.54,26.0]
[1748717869534,8.80437848,156.55,156.52,6.38883683]
[1748717869535,8.80437848,156.55,156.53,32.38849624]
[1748717869739,8.80437848,156.55,156.53,6.38849624]
[1748717870284,13.77171212,156.55,156.53,32.38849624]
[1748717870776,13.77171212,156.54,156.53,26.0]
[1748717890069,13.91387369,156.54,156.53,26.0]
[1748717890858,20.30201729,156.54,156.53,26.0]
[1748717891968,13.91387369,156.54,156.53,26.0]
[1748717892177,8.95885776,156.54,156.53,26.0]
[1748717893188,15.34700136,156.54,156.53,26.0]
[1748717899885,15.34700136,156.54,156.51,26.0]
[1748717900098,8.81669619,156.52,156.51,26.0]
[1748717901195,8.81669619,156.52,156.49,32.39009232]
[1748717901696,8.81669619,156.51,156.49,32.39009232]
[1748717904309,8.81669619,156.53,156.49,32.39009232]
[1748717904475,8.81669619,156.54,156.5,8.81669619]
[1748717904674,8.81669619,156.55,156.53,26.0]
[1748717905275,8.81669619,156.55,156.53,32.38843099]
[1748717905483,202.91643362,156.6,156.53,32.38843099]
[1748717905484,155.38604718,156.6,156.53,32.38843099]
[1748717905681,18.67669619,156.59,156.57,26.0]
[1748717906277,23.6231714,156.59,156.54,39.7631714]
[1748717907199,23.6231714,156.59,156.58,26.0]
[1748717907985,9.86,156.59,156.58,26.0]
[1748717908402,23.6231714,156.59,156.56,32.38699152]
[1748717909502,23.6231714,156.59,156.54,13.7631714]
[1748717909503,13.7631714,156.57,156.54,26.0]
[1748717909683,13.7631714,156.56,156.55,26.0]
[1748717917810,13.7631714,156.56,156.53,26.0]
[1748717918109,13.7631714,156.55,156.53,26.0]
[1748717926194,8.81310823,156.55,156.53,26.0]
[1748717929118,8.81310823,156.55,156.53,32.38853955]
[1748717930414,8.81310823,156.56,156.53,32.38853955]
[1748717931321,8.81310823,156.55,156.52,32.38881787]
[1748717932810,8.81310823,156.55,156.52,26.0]
[1748717933019,8.81310823,156.53,156.51,26.0]
[1748717933315,8.81310823,156.52,156.51,26.0]
[1748717934516,8.81310823,156.52,156.5,32.38971146]
[1748717934715,8.81310823,156.53,156.5,32.38971146]
[1748717939621,8.81310823,156.52,156.48,6.39028353]
[1748717939826,8.81310823,156.52,156.45,1.6653]
[1748717939827,8.81310823,156.49,156.45,1.6653]
[1748717940014,8.81310823,156.47,156.45,6.39170468]
[1748717940406,8.81310823,156.48,156.45,6.39170468]
[1748717940715,8.81310823,156.48,156.47,26.0]
[1748717942211,13.92670863,156.48,156.43,6.39237414]
[1748717942410,13.78454706,156.45,156.43,6.39237414]
[1748717942707,0.14216157,156.47,156.45,26.0]
[1748717942917,13.78454706,156.46,156.41,7.93352803]
[1748717943111,13.78454706,156.46,156.43,26.0]
[1748717943112,13.78454706,156.44,156.43,26.0]
[1748717944227,13.78454706,156.44,156.42,32.39296855]
[1748717948138,13.78454706,156.45,156.42,32.39296855]
[1748717950344,13.78454706,156.44,156.42,32.39296855]
[1748717952031,13.78454706,156.45,156.42,32.39296855]
[1748717953229,38.64,156.46,156.42,32.39296855]
[1748717953419,52.42454706,156.46,156.42,32.39296855]
[1748717955034,13.78454706,156.45,156.42,32.39296855]
[1748717957428,62.28454706,156.47,156.42,46.17751561]
[1748717958040,13.78454706,156.46,156.42,32.39296855]
[1748717960436,13.78454706,156.45,156.42,32.39296855]
[1748717962233,8.82398667,156.45,156.42,32.39296855]
[1748717964329,8.82398667,156.46,156.42,32.39296855]
[1748717964932,38.64,156.47,156.42,57.19956613]
[1748717965256,47.46398667,156.49,156.47,26.0]
[1748717965840,9.86,156.5,156.47,6.39096554]
[1748717965841,8.82398667,156.48,156.47,6.39096554]
[1748717967554,8.82398667,156.48,156.47,26.0]
[1748717968665,8.82398667,156.48,156.47,32.39100146]
[1748717969331,48.5,156.5,156.47,32.39100146]
[1748717969538,8.82398667,156.48,156.47,32.39100146]
[1748717973467,8.82398667,156.49,156.47,32.39100146]
[1748717974390,8.82398667,156.53,156.51,26.0]
[1748717974680,38.64,156.53,156.5,26.0]
[1748717974976,38.0220869,156.54,156.5,26.0]
[1748717975155,38.64,156.53,156.5,26.0]
[1748717975480,38.64,156.53,156.51,6.38936809]
[1748717975977,38.64,156.53,156.5,32.38964461]
[1748717976964,47.46398667,156.53,156.5,32.38964461]
[1748717977163,8.82398667,156.53,156.5,32.38964461]
[1748717977350,8.82398667,156.52,156.46,1.6053]
[1748717977549,38.64,156.53,156.48,26.0]
[1748717977550,8.82398667,156.5,156.48,26.0]
[1748717978558,8.82398667,156.5,156.49,26.0]
[1748717980257,13.78004264,156.5,156.49,26.0]
[1748717995386,20.16981899,156.5,156.49,26.0]
[1748717995592,20.16981899,156.5,156.47,26.0]
[1748717995762,52.42004264,156.49,156.47,26.0]
[1748718001568,19.33810023,156.54,156.47,32.39084762]
[1748718001911,52.42004264,156.53,156.48,13.78004264]
[1748718002205,8.81545487,156.53,156.48,8.81545487]
[1748718002372,38.64,156.53,156.49,8.81545487]
[1748718002569,18.67545487,156.54,156.49,8.81545487]
[1748718002904,57.31545487,156.54,156.49,8.81545487]
[1748718003477,57.31545487,156.54,156.5,6.38977635]
[1748718003673,8.81545487,156.53,156.49,6.39001758]
[1748718004783,48.5,156.54,156.49,6.39001758]
[1748718004784,48.5,156.54,156.5,34.81545487]
[1748718005380,9.86,156.54,156.5,34.81545487]
[1748718005684,48.5,156.54,156.51,6.38936809]
[1748718005892,9.86,156.54,156.51,6.38936809]
[1748718006879,18.67545487,156.54,156.5,32.38968422]
[1748718008300,23.63212214,156.54,156.5,32.38968422]
[1748718008488,9.86,156.54,156.5,46.16180636]
[1748718010102,13.77212214,156.56,156.54,26.0]
[1748718010303,38.62,156.55,156.54,26.0]
[1748718010610,23.63212214,156.57,156.54,26.0]
[1748718010901,38.62,156.56,156.54,26.0]
[1748718011105,23.63212214,156.57,156.54,26.0]
[1748718011288,23.63212214,156.57,156.53,39.77212214]
[1748718011289,38.62,156.56,156.53,39.77212214]
[1748718011607,38.62,156.56,156.53,26.0]
[1748718011775,23.63212214,156.57,156.53,26.0]
[1748718011980,23.63212214,156.57,156.53,32.38850681]
[1748718012210,62.25212214,156.57,156.53,32.38850681]
[1748718015184,62.25212214,156.57,156.53,46.16062895]
[1748718015389,48.48,156.57,156.53,46.16062895]
[1748718015899,9.86,156.57,156.56,26.0]
[1748718016211,48.48,156.57,156.56,26.0]
[1748718016592,62.25212214,156.57,156.56,26.0]
[1748718017493,23.63212214,156.57,156.56,26.0]
[1748718017806,62.25212214,156.57,156.56,26.0]
[1748718018306,48.48,156.57,156.55,6.38769147]
[1748718018921,48.48,156.57,156.56,26.0]
[1748718020101,9.86,156.57,156.56,26.0]
[1748718020304,38.62,156.58,156.56,39.77212214]
[1748718020494,38.62,156.59,156.56,26.0]
[1748718021087,38.62,156.59,156.56,32.38707832]
[1748718022307,9.86,156.61,156.56,32.38707832]
[1748718022308,9.86,156.61,156.57,13.77212214]
[1748718022492,38.62,156.6,156.57,13.77212214]
[1748718023614,9.86,156.61,156.57,13.77212214]
[1748718023615,9.86,156.61,156.58,6.38651168]
[1748718023800,48.48,156.61,156.58,6.38651168]
[1748718024313,62.25212214,156.61,156.58,6.38651168]
[1748718024513,62.25212214,156.61,156.57,6.38680123]
[1748718024808,23.63212214,156.61,156.57,6.38680123]
[1748718025010,62.25212214,156.61,156.57,6.38680123]
[1748718025184,23.63212214,156.61,156.57,20.15892337]
[1748718025384,62.25212214,156.61,156.57,20.15892337]
[1748718025809,48.48,156.61,156.57,20.15892337]
[1748718026011,9.86,156.61,156.6,26.0]
[1748718026799,13.77212214,156.63,156.6,26.0]
[1748718027112,38.62,156.63,156.6,39.77212214]
[1748718027504,38.6,156.64,156.6,39.77212214]
[1748718027898,38.6,156.64,156.6,46.15764403]
[1748718029215,52.37212214,156.64,156.6,32.38552189]
[1748718032309,47.40304646,156.64,156.6,32.38552189]
[1748718033421,8.80304646,156.64,156.6,32.38552189]
[1748718033615,47.40304646,156.64,156.6,32.38552189]
[1748718035791,8.80304646,156.64,156.6,32.38552189]
[1748718035998,38.6,156.64,156.6,41.18856835]
[1748718037015,58.2475809,156.65,156.6,41.18856835]
[1748718037712,58.2475809,156.65,156.61,8.80304646]
[1748718037917,19.6475809,156.65,156.61,8.80304646]
[1748718038111,58.2475809,156.65,156.61,8.80304646]
[1748718038425,58.2475809,156.65,156.62,6.3848806]
[1748718038921,10.84453444,156.65,156.64,26.0]
[1748718039227,49.44453444,156.65,156.64,26.0]
[1748718040515,10.84453444,156.65,156.64,26.0]
[1748718040822,38.6,156.66,156.64,32.38406537]
[1748718041228,9.84,156.67,156.64,32.38406537]
[1748718041413,48.44,156.67,156.64,32.38406537]
[1748718041814,9.84,156.67,156.64,32.38406537]
[1748718042016,48.44,156.67,156.64,32.38406537]
[1748718043903,16.26917884,156.69,156.64,41.18711183]
[1748718044210,16.26917884,156.69,156.68,26.0]
[1748718044413,16.26917884,156.69,156.68,34.80304646]
[1748718044802,16.26917884,156.69,156.68,26.0]
[1748718046309,16.26917884,156.69,156.67,6.38277703]
[1748718048026,16.26917884,156.69,156.68,26.0]
[1748718050236,16.26917884,156.69,156.67,6.38276567]
[1748718053434,16.26917884,156.69,156.68,26.0]
[1748718054618,16.26917884,156.69,156.67,6.38275476]
[1748718055634,16.26917884,156.69,156.68,26.0]
[1748718056043,30.01174878,156.69,156.68,26.0]
[1748718056212,36.53593855,156.69,156.64,26.0]
[1748718056409,13.74256994,156.68,156.66,26.0]
[1748718056928,13.74256994,156.67,156.63,6.38433604]
[1748718057235,13.74256994,156.67,156.66,26.0]
[1748718060298,20.12541285,156.67,156.66,26.0]
[1748718061147,20.12541285,156.67,156.61,6.38524022]
[1748718061319,6.38284291,156.67,156.64,26.0]
[1748718061515,13.74256994,156.65,156.64,26.0]
[1748718062521,13.74256994,156.66,156.64,26.0]
[1748718065865,13.74256994,156.65,156.64,26.0]
[1748718068263,8.80230839,156.65,156.64,26.0]
[1748718068543,75.251596,156.69,156.64,26.0]
[1748718068864,8.80230839,156.67,156.64,26.0]
[1748718069239,8.80230839,156.67,156.64,32.38406537]
[1748718070064,8.80230839,156.68,156.64,32.38406537]
[1748718070374,50.42009625,156.69,156.64,46.13256562]
[1748718070961,36.671596,156.69,156.68,26.0]
[1748718071366,26.831596,156.69,156.68,26.0]
[1748718071964,26.831596,156.69,156.68,32.38243553]
[1748718072753,26.831596,156.69,156.68,26.0]
[1748718072959,26.831596,156.69,156.68,32.38243553]
[1748718073370,13.74850025,156.71,156.68,32.38243553]
[1748718073575,13.74850025,156.72,156.68,32.38243553]
[1748718076757,9.84,156.73,156.68,32.38243553]
[1748718076957,98.27945608,156.76,156.69,13.74850025]
[1748718077152,108.11945608,156.76,156.72,26.0]
[1748718077367,25.95724315,156.78,156.74,26.0]
[1748718077568,52.36850025,156.79,156.76,26.0]
[1748718077779,13.74850025,156.79,156.76,26.0]
[1748718078451,13.74850025,156.78,156.76,26.0]
[1748718078648,13.74850025,156.79,156.76,26.0]
[1748718082159,38.62,156.8,156.76,26.0]
[1748718082360,13.74850025,156.79,156.76,26.0]
[1748718082687,13.74850025,156.78,156.76,26.0]
[1748718083884,13.74850025,156.79,156.77,26.0]
[1748718084478,38.62,156.8,156.77,26.0]
[1748718084657,38.62,156.8,156.69,33.92264911]
[1748718084658,38.6,156.8,156.76,20.12761214]
[1748718084862,13.74850025,156.8,156.76,46.12761214]
[1748718085571,62.18850025,156.81,156.76,46.12761214]
[1748718085879,13.74850025,156.79,156.78,26.0]
[1748718091084,13.74850025,156.79,156.75,26.0]
[1748718091085,13.89066182,156.79,156.75,26.0]
[1748718091281,13.74850025,156.77,156.75,26.0]
[1748718092579,13.74850025,156.77,156.73,20.1288251]
[1748718092580,13.74850025,156.77,156.76,26.0]
[1748718093658,13.74850025,156.77,156.71,13.74850025]
[1748718093859,13.74850025,156.74,156.7,20.12972339]
[1748718094069,13.74850025,156.74,156.73,26.0]
[1748718094462,13.74850025,156.74,156.69,6.38175367]
[1748718094683,13.74850025,156.72,156.68,20.13080565]
[1748718094868,13.74850025,156.72,156.71,26.0]
[1748718095683,13.74850025,156.73,156.71,26.0]
[1748718096358,13.74850025,156.72,156.71,26.0]
[1748718096563,13.74850025,156.73,156.71,26.0]
[1748718097084,13.74850025,156.72,156.71,26.0]
[1748718098562,13.74850025,156.73,156.71,26.0]
[1748718099085,13.74850025,156.74,156.71,32.38106836]
[1748718099286,52.38850025,156.75,156.73,26.0]
[1748718099975,13.74850025,156.75,156.73,26.0]
[1748718101563,13.74850025,156.75,156.73,32.38027829]
[1748718101887,62.22850025,156.76,156.73,32.38027829]
[1748718102587,13.74850025,156.75,156.73,32.38027829]
[1748718106277,62.22850025,156.76,156.73,32.38027829]
[1748718106500,9.86,156.76,156.73,32.38027829]
[1748718106794,13.74850025,156.77,156.73,32.38027829]
[1748718106965,13.74850025,156.78,156.73,46.12877854]
[1748718107162,13.74850025,156.77,156.73,32.38027829]
[1748718107594,10.72592915,156.79,156.73,46.12877854]
[1748718107798,13.74850025,156.78,156.73,46.12877854]
[1748718107997,24.4744294,156.79,156.77,26.0]
[1748718109067,24.4744294,156.79,156.78,26.0]
[1748718109972,30.99469072,156.79,156.73,6.38039941]
[1748718110302,10.72592915,156.79,156.78,26.0]
[1748718110499,24.4744294,156.79,156.78,26.0]
[1748718111075,10.72592915,156.79,156.78,26.0]
[1748718111477,10.72592915,156.79,156.78,32.37836458]
[1748718111677,6.51860183,156.83,156.78,32.37836458]
[1748718111678,19.73403948,156.84,156.78,46.12686483]
[1748718111885,13.74850025,156.83,156.78,46.12686483]
[1748718112092,13.74850025,156.82,156.78,32.37836458]
[1748718112588,13.74850025,156.81,156.78,32.37836458]
[1748718114378,13.74850025,156.81,156.8,26.0]
[1748718116480,58.82564456,156.81,156.77,26.0]
[1748718116682,13.74850025,156.78,156.77,26.0]
[1748718117215,54.95714431,156.81,156.78,26.0]
[1748718117418,13.74850025,156.79,156.78,26.0]
[1748718120995,20.12645802,156.79,156.78,26.0]
[1748718121989,13.74850025,156.79,156.78,26.0]
[1748718123691,48.56,156.81,156.78,26.0]
[1748718123899,13.74850025,156.8,156.78,26.0]
[1748718125015,13.74850025,156.8,156.78,32.37834031]
[1748718125505,23.62850025,156.81,156.78,32.37834031]
[1748718126116,9.88,156.81,156.78,32.37834031]
[1748718128617,13.74850025,156.83,156.78,46.12684056]
[1748718130117,13.74850025,156.83,156.8,6.37755102]
[1748718132298,13.74850025,156.82,156.81,26.0]
[1748718133127,58.41403948,156.84,156.81,26.0]
[1748718133308,13.74850025,156.83,156.81,26.0]
[1748718134819,13.74850025,156.83,156.81,32.37703191]
[1748718135819,19.73403948,156.84,156.81,32.37703191]
[1748718136006,0.8695229,156.84,156.81,46.12553216]
[1748718136316,0.8695229,156.84,156.82,13.74850025]
[1748718136721,0.8695229,156.84,156.83,39.74850025]
[1748718137020,0.8695229,156.84,156.83,46.1248313]
[1748718140024,0.8695229,156.84,156.83,20.1248313]
[1748718140225,0.8695229,156.84,156.83,46.1248313]
[1748718140432,0.8695229,156.84,156.83,20.1248313]
[1748718140649,0.8695229,156.84,156.83,26.2818313]
[1748718140821,0.8695229,156.84,156.83,52.2818313]
[1748718141025,0.8695229,156.84,156.83,26.2818313]
[1748718141335,0.8695229,156.84,156.83,44.93148016]
[1748718141523,0.8695229,156.84,156.83,45.07364173]
[1748718143644,6.37243856,156.93,156.92,26.0]
[1748718143645,13.74850025,156.93,156.92,26.0]
[1748718144366,101.72,156.98,156.92,26.0]
[1748718144641,101.72,156.98,156.91,13.74850025]
[1748718144642,13.74850025,156.96,156.94,26.0]
[1748718144944,5.08337579,157.14,156.98,10.0]
[1748718145150,0.8882394,157.16,156.98,10.0]
[1748718145151,13.74850025,157.11,157.03,13.89066182]
[1748718145434,6.36343777,157.15,157.03,51.01785875]
[1748718145736,13.74850025,157.14,157.04,0.14216157]
[1748718145935,10.7882394,157.16,157.04,0.14216157]
[1748718145936,0.8882394,157.16,157.12,26.0]
[1748718146238,14.63673965,157.16,157.14,26.0]
[1748718146438,0.8882394,157.16,157.14,26.0]
[1748718146618,0.8882394,157.16,157.15,26.0]
[1748718147253,2.52913075,157.32,157.15,188.0519487]
[1748718147429,2.52913075,157.32,157.15,131.0134]
[1748718147745,13.95652587,157.24,157.18,13.74850025]
[1748718147945,13.74850025,157.24,157.21,26.0]
[1748718148241,13.74850025,157.23,157.21,26.0]
[1748718148541,13.74850025,157.24,157.21,26.0]
[1748718148845,13.74850025,157.22,157.19,26.0]
[1748718149061,6.35894007,157.26,157.18,26.0]
[1748718149225,6.35894007,157.26,157.2,26.0]
[1748718149226,13.74850025,157.23,157.2,26.0]
[1748718149544,13.74850025,157.22,157.2,26.0]
[1748718149916,13.74850025,157.21,157.19,26.0]
[1748718150341,22.25647565,157.21,157.18,26.0]
[1748718151020,22.25647565,157.22,157.17,26.0]
[1748718151648,22.25647565,157.21,157.17,26.0]
[1748718152048,22.25647565,157.21,157.18,26.0]
[1748718152750,22.25647565,157.22,157.17,26.0]
[1748718152947,22.25647565,157.23,157.18,22.25647565]
[1748718153250,22.25647565,157.23,157.13,6.3426]
[1748718153251,10.42,157.26,157.24,26.0]
[1748718153654,10.42,157.26,157.23,26.0]
[1748718153829,22.25647565,157.25,157.24,26.0]
[1748718154136,22.25647565,157.25,157.13,6.3426]
[1748718154137,10.42,157.26,157.21,26.0]
[1748718154341,22.25647565,157.23,157.21,26.0]
[1748718154919,6.36051392,157.22,157.21,26.0]